[Event "XVI Gran Hotel Bali 2017"]
[Site "Benidorm"]
[Date "2017.12.01"]
[Round "1"]
[White "Jerie, Sven"]
[Black "Moreno Ibanez, Miguel"]
[Result "0-1"]
[ECO "B75"]
[WhiteElo "2077"]
[BlackElo "2272"]
[Annotator "NA"]
[PlyCount "100"]
[EventDate "2017.??.??"]
[EventType "swiss"]
[EventCountry "ESP"]
[SourceTitle "playchess.com"]
[Source "ChessBase"]
[SourceQuality "1"]
[TimeControl "5400+30"]

1. e4 {[%emt 0:00:00]} c5 {[%emt 0:00:20]} 2. Nf3 {[%emt 0:00:00]} d6 {[%emt 0:00:29]} 3. d4 {[%emt 0:00:09]} cxd4 {[%emt 0:00:08]} 4. Nxd4 {[%emt 0:00:10]} Nf6 {[%emt 0:00:10]} 5. Nc3 {[%emt 0:00:27]} g6 {[%emt 0:00:41]} 6. Be3 {[%emt 0:01:10]} Bg7 {[%emt 0:00:08]} 7. f3 {[%emt 0:00:28]} a6 {[%emt 0:00:29]} 8. Qd2 {[%emt 0:01:25]} Nbd7 {[%emt 0:00:16]} 9. O-O-O {[%emt 0:07:03]} b5 {[%emt 0:00:30]} 10. Bh6 {[%emt 0:09:14]} Bxh6 {[%emt 0:01:34]} 11. Qxh6 {[%emt 0:00:07]} Bb7 {[%emt 0:00:12]} 12. h4 {[%emt 0:12:06]} Rc8 {[%emt 0:07:23]} 13. Qd2 {[%emt 0:24:52]} h5 {[%emt 0:09:02]} 14. Kb1 {[%emt 0:10:29]} Nb6 {[%emt 0:10:10]} 15. Bd3 {[%emt 0:08:15]} Nfd7 {[%emt 0:06:40]} 16. f4 {[%emt 0:01:52]} Nc4 {[%emt 0:13:06]} 17. Bxc4 {[%emt 0:00:45]} Rxc4 {[%emt 0:00:07]} 18. f5 {[%emt 0:03:25]} Rg8 {[%emt 0:03:34]} 19. Rhf1 {[%emt 0:01:31]} Ne5 {[%emt 0:00:41]} 20. fxg6 {[%emt 0:01:22]} Rxg6 {[%emt 0:03:28]} 21. Rf5 {[%emt 0:00:24]} b4 {[%emt 0:09:41]} 22. Nd5 {[%emt 0:02:36]} e6 {[%emt 0:01:39]} 23. Rxh5 {[%emt 0:00:15]} Rg8 {[%emt 0:00:37]} 24. Ne3 {[%emt 0:00:57]} Rc5 {[%emt 0:03:26]} 25. Qxb4 {[%emt 0:00:58]} Qc7 {[%emt 0:00:45]} 26. Qa4+ {[%emt 0:01:50]} Ke7 {[%emt 0:00:17]} 27. Nb3 {[%emt 0:02:58]} Rb5 {[%emt 0:01:08]} 28. Rh7 {[%emt 0:01:53]} Rg3 {[%emt 0:00:24]} 29. Qd4 {[%emt 0:00:51]} a5 {[%emt 0:00:50]} 30. Nd2 {[%emt 0:05:53]} Rb4 {[%emt 0:01:32]} 31. c4 {[%emt 0:00:15]} Qc6 {[%emt 0:02:27]} 32. Nc2 {[%emt 0:00:44]} Rb6 {[%emt 0:03:12]} 33. Qf2 {[%emt 0:00:20]} Rxb2+ {[%emt 0:00:50]} 34. Ka1 {[%emt 0:00:27]} Qa4 {[%emt 0:00:25]} 35. Rxf7+ {[%emt 0:00:25]} Nxf7 {[%emt 0:01:37]} 36. Kxb2 {[%emt 0:00:16]} Rd3 {[%emt 0:00:50]} 37. Rf1 {[%emt 0:01:21]} Ne5 {[%emt 0:00:23]} 38. Qf8+ {[%emt 0:00:51]} Kd7 {[%emt 0:00:01]} 39. Rf7+ {[%emt 0:00:48]} Nxf7 {[%emt 0:00:11]} 40. Qxf7+ {[%emt 0:00:01]} Kd8 {[%emt 0:00:32]} 41. Nf3 {[%emt 0:01:02]} Bxe4 {[%emt 0:01:27]} 42. Ng5 {[%emt 0:00:30]} Qxc4 {[%emt 0:03:03]} 43. Nxe6+ {[%emt 0:00:17]} Kc8 {[%emt 0:00:05]} 44. Qe8+ {[%emt 0:00:14]} Kb7 {[%emt 0:00:16]} 45. Qd7+ {[%emt 0:00:27]} Ka6 {[%emt 0:01:11]} 46. Nc7+ {[%emt 0:00:16]} Kb6 {[%emt 0:00:13]} 47. Qe7 {[%emt 0:01:19]} Rb3+ {[%emt 0:01:27]} 48. axb3 {[%emt 0:00:12]} Qxc2+ {[%emt 0:00:06]} 49. Ka3 {[%emt 0:00:03]} Qc1+ {[%emt 0:00:12]} 50. Ka2 {[%emt 0:00:26]} Qb1+ {[%emt 0:00:08]} 0-1

[Event "XVI Gran Hotel Bali 2017"]
[Site "Benidorm"]
[Date "2017.12.01"]
[Round "1"]
[White "Mataix Arbona, Cesar"]
[Black "Iglesias Romero, Jorge"]
[Result "0-1"]
[ECO "A43"]
[WhiteElo "2074"]
[BlackElo "2271"]
[Annotator "NA"]
[PlyCount "126"]
[EventDate "2017.??.??"]
[EventType "swiss"]
[EventCountry "ESP"]
[SourceTitle "playchess.com"]
[Source "ChessBase"]
[SourceQuality "1"]
[TimeControl "5400+30"]

1. d4 {[%emt 0:00:00]} c5 {[%emt 0:00:14]} 2. c3 {[%emt 0:00:25]} cxd4 {[%emt 0:01:40]} 3. cxd4 {[%emt 0:00:21]} d5 {[%emt 0:00:05]} 4. Nc3 {[%emt 0:01:59]} Nc6 {[%emt 0:00:52]} 5. Nf3 {[%emt 0:00:30]} Nf6 {[%emt 0:01:35]} 6. Bf4 {[%emt 0:05:48]} e6 {[%emt 0:01:09]} 7. e3 {[%emt 0:00:37]} Nh5 {[%emt 0:07:04]} 8. Bg5 {[%emt 0:09:23]} Qb6 {[%emt 0:00:34]} 9. Bb5 {[%emt 0:06:41]} h6 {[%emt 0:13:44]} 10. Bh4 {[%emt 0:00:30]} g5 {[%emt 0:01:31]} 11. Ne5 {[%emt 0:04:13]} Nf4 {[%emt 0:26:53]} 12. exf4 {[%emt 0:03:32]} gxh4 {[%emt 0:00:15]} 13. Qa4 {[%emt 0:11:58]} Bd7 {[%emt 0:02:00]} 14. Nxd7 {[%emt 0:02:39]} Kxd7 {[%emt 0:00:56]} 15. O-O {[%emt 0:01:11]} Bg7 {[%emt 0:05:58]} 16. Rfd1 {[%emt 0:00:31]} a6 {[%emt 0:01:36]} 17. Bxc6+ {[%emt 0:01:40]} Qxc6 {[%emt 0:00:20]} 18. Qxc6+ {[%emt 0:02:44]} Kxc6 {[%emt 0:04:58]} 19. Kf1 {[%emt 0:05:15]} b5 {[%emt 0:01:50]} 20. a4 {[%emt 0:06:18]} Rhb8 {[%emt 0:09:40]} 21. a5 {[%emt 0:04:43]} Rc8 {[%emt 0:03:03]} 22. Ke2 {[%emt 0:01:42]} Kd7 {[%emt 0:01:43]} 23. Rd3 {[%emt 0:03:18]} Rc4 {[%emt 0:02:02]} 24. Rad1 {[%emt 0:00:57]} Bf6 {[%emt 0:00:25]} 25. b3 {[%emt 0:02:53]} Rc6 {[%emt 0:01:31]} 26. Kf3 {[%emt 0:04:39]} Rac8 {[%emt 0:01:25]} 27. Na2 {[%emt 0:00:30]} Be7 {[%emt 0:00:57]} 28. f5 {[%emt 0:00:54]} Bd6 {[%emt 0:02:43]} 29. R1d2 {[%emt 0:01:42]} Rg8 {[%emt 0:01:26]} 30. fxe6+ {[%emt 0:01:17]} fxe6 {[%emt 0:00:12]} 31. Rd1 {[%emt 0:01:33]} Rcc8 {[%emt 0:01:22]} 32. g3 {[%emt 0:00:54]} Rgf8+ {[%emt 0:00:14]} 33. Ke2 {[%emt 0:01:26]} Bc7 {[%emt 0:00:28]} 34. b4 {[%emt 0:03:26]} Bd6 {[%emt 0:00:07]} 35. f4 {[%emt 0:00:46]} Rc4 {[%emt 0:00:32]} 36. Rb3 {[%emt 0:02:17]} h5 {[%emt 0:00:18]} 37. Rd2 {[%emt 0:01:04]} hxg3 {[%emt 0:00:34]} 38. hxg3 {[%emt 0:00:01]} h4 {[%emt 0:00:17]} 39. gxh4 {[%emt 0:01:42]} Bxf4 {[%emt 0:01:11]} 40. Rf3 {[%emt 0:00:16]} Rf5 {[%emt 0:00:39]} 41. Rb2 {[%emt 0:00:28]} Rxd4 {[%emt 0:00:20]} 42. Nc3 {[%emt 0:00:12]} Re5+ {[%emt 0:00:33]} 43. Kf1 {[%emt 0:00:20]} Bc1 {[%emt 0:01:36]} 44. Rc2 {[%emt 0:00:39]} Rxh4 {[%emt 0:01:42]} 45. Ne2 {[%emt 0:02:05]} Be3 {[%emt 0:00:39]} 46. Rf7+ {[%emt 0:00:40]} Kd6 {[%emt 0:00:19]} 47. Ng3 {[%emt 0:01:04]} Rf4+ {[%emt 0:00:58]} 48. Rxf4 {[%emt 0:00:20]} Bxf4 {[%emt 0:00:01]} 49. Ne2 {[%emt 0:00:12]} Be3 {[%emt 0:00:09]} 50. Rc8 {[%emt 0:00:11]} Rf5+ {[%emt 0:02:03]} 51. Ke1 {[%emt 0:00:10]} Rf7 {[%emt 0:00:18]} 52. Nc3 {[%emt 0:00:27]} Ke5 {[%emt 0:00:17]} 53. Nd1 {[%emt 0:00:23]} Ke4 {[%emt 0:01:09]} 54. Rc6 {[%emt 0:00:07]} e5 {[%emt 0:00:54]} 55. Rxa6 {[%emt 0:00:17]} d4 {[%emt 0:00:19]} 56. Re6 {[%emt 0:00:36]} Bf4 {[%emt 0:01:46]} 57. Nf2+ {[%emt 0:03:48]} Kd5 {[%emt 0:00:01]} 58. Rb6 {[%emt 0:00:35]} Bg3 {[%emt 0:00:19]} 59. a6 {[%emt 0:00:11]} Rxf2 {[%emt 0:00:28]} 60. Rxb5+ {[%emt 0:00:11]} Kc4 {[%emt 0:00:53]} 61. Ra5 {[%emt 0:00:22]} Rf7+ {[%emt 0:00:28]} 62. Ke2 {[%emt 0:00:37]} Rf2+ {[%emt 0:00:38]} 63. Kd1 {[%emt 0:00:12]} d3 {[%emt 0:00:23]} 0-1

[Event "XVI Gran Hotel Bali 2017"]
[Site "Benidorm"]
[Date "2017.12.01"]
[Round "1"]
[White "Aledo Yanguas, Javier"]
[Black "Exposito Amaro, Josue"]
[Result "0-1"]
[ECO "C00"]
[WhiteElo "2066"]
[BlackElo "2263"]
[Annotator "NA"]
[PlyCount "62"]
[EventDate "2017.??.??"]
[EventType "swiss"]
[EventCountry "ESP"]
[SourceTitle "playchess.com"]
[Source "ChessBase"]
[SourceQuality "1"]
[TimeControl "5400+30"]

1. e4 {[%emt 0:00:00]} e6 {[%emt 0:00:11]} 2. d4 {[%emt 0:00:00]} d5 {[%emt 0:00:10]} 3. Bd3 {[%emt 0:00:00]} dxe4 {[%emt 0:00:12]} 4. Bxe4 {[%emt 0:00:00]} Nf6 {[%emt 0:00:09]} 5. Bf3 {[%emt 0:00:00]} Nbd7 {[%emt 0:00:10]} 6. Ne2 {[%emt 0:00:15]} e5 {[%emt 0:00:10]} 7. O-O {[%emt 0:06:37]} e4 {[%emt 0:01:18]} 8. Ng3 {[%emt 0:00:43]} exf3 {[%emt 0:04:50]} 9. Re1+ {[%emt 0:01:05]} Be7 {[%emt 0:02:45]} 10. Nf5 {[%emt 0:00:15]} Ng8 {[%emt 0:05:23]} 11. b3 {[%emt 0:17:30]} Ndf6 {[%emt 0:07:08]} 12. Nxe7 {[%emt 0:06:41]} Nxe7 {[%emt 0:01:26]} 13. Ba3 {[%emt 0:00:28]} Be6 {[%emt 0:04:11]} 14. c4 {[%emt 0:01:37]} c6 {[%emt 0:01:28]} 15. Nc3 {[%emt 0:08:58]} Qa5 {[%emt 0:06:41]} 16. Nb5 {[%emt 0:09:38]} cxb5 {[%emt 0:03:52]} 17. Bxe7 {[%emt 0:00:15]} Kxe7 {[%emt 0:02:17]} 18. d5 {[%emt 0:01:13]} bxc4 {[%emt 0:03:44]} 19. dxe6 {[%emt 0:01:43]} Qd5 {[%emt 0:11:47]} 20. Qc1 {[%emt 0:05:36]} fxe6 {[%emt 0:02:17]} 21. Qf4 {[%emt 0:01:56]} Rad8 {[%emt 0:03:51]} 22. gxf3 {[%emt 0:03:31]} Kf7 {[%emt 0:07:23]} 23. Rac1 {[%emt 0:02:46]} cxb3 {[%emt 0:03:02]} 24. axb3 {[%emt 0:00:26]} Qf5 {[%emt 0:03:13]} 25. Qa4 {[%emt 0:05:19]} Rd7 {[%emt 0:01:56]} 26. Rc3 {[%emt 0:01:27]} Rhd8 {[%emt 0:03:44]} 27. Qxa7 {[%emt 0:00:51]} Nd5 {[%emt 0:00:44]} 28. Rc4 {[%emt 0:07:49]} Nf4 {[%emt 0:02:47]} 29. Kh1 {[%emt 0:00:27]} Qg5 {[%emt 0:01:21]} 30. Rg1 {[%emt 0:00:32]} Rd1 {[%emt 0:01:07]} 31. Qxb7+ {[%emt 0:00:15]} Kg8 {[%emt 0:00:47]} 0-1

[Event "XVI Gran Hotel Bali 2017"]
[Site "Benidorm"]
[Date "2017.12.04"]
[Round "4"]
[White "Olhovik, Andrei"]
[Black "Jimenez Martinez, Jose Vicente"]
[Result "1-0"]
[ECO "E73"]
[WhiteElo "2299"]
[BlackElo "2223"]
[Annotator "NA"]
[PlyCount "131"]
[EventDate "2017.??.??"]
[EventType "swiss"]
[EventCountry "ESP"]
[SourceTitle "playchess.com"]
[Source "ChessBase"]
[SourceQuality "1"]
[TimeControl "5400+30"]

1. d4 {[%emt 0:04:28]} g6 {[%emt 0:00:19]} 2. c4 {[%emt 0:00:09]} Bg7 {[%emt 0:00:05]} 3. e4 {[%emt 0:00:06]} d6 {[%emt 0:00:05]} 4. Nc3 {[%emt 0:00:06]} Nf6 {[%emt 0:00:07]} 5. Be2 {[%emt 0:00:06]} O-O {[%emt 0:03:02]} 6. Bg5 {[%emt 0:00:09]} Nbd7 {[%emt 0:05:43]} 7. Qd2 {[%emt 0:01:11]} c5 {[%emt 0:00:27]} 8. Nf3 {[%emt 0:00:12] E73: King's Indian: Averbakh Variation without 6...c5} (8. d5 b5 9. cxb5 a6 10. bxa6 Qa5 11. Nf3 Bxa6 12. Bxa6 Qxa6 13. Qe2 Qxe2+ 14. Kxe2 Rfb8 15. Rab1 Nb6 16. Nd2 h6 17. Bxf6 Bxf6 {1-0 (30) Akobian,V (2612)-Petrosian,T (2593) Chicago 2016}) 8... Qa5 {[%emt 0:03:06]} 9. d5 {[%emt 0:01:29]} Re8 {[%emt 0:03:37]} 10. O-O {[%emt 0:01:04]} a6 {[%emt 0:03:00]} 11. Rfe1 {[%emt 0:03:14]} Rb8 {[%emt 0:09:42]} 12. a4 {[%emt 0:00:28]} Nb6 {[%emt 0:04:42]} 13. Qc2 {[%emt 0:13:24]} Bg4 {[%emt 0:25:54]} 14. b3 $146 {[%emt 0:02:51]} ({Predecessor:} 14. Nd2 Bxe2 15. Nxe2 Nbd7 16. f4 Kh8 17. h3 Qc7 18. Nf3 b5 {½-½ (18) Guzel,A-Wong,R Kuala Lumpur 2002}) 14... Nbd7 {[%emt 0:07:26]} 15. h3 {[%emt 0:05:19]} Bxf3 {[%emt 0:00:09]} 16. Bxf3 {[%emt 0:00:02]} e6 {[%emt 0:08:24]} 17. Bd2 {[%emt 0:04:03]} Qc7 {[%emt 0:03:09]} 18. a5 {[%emt 0:00:09]} exd5 {[%emt 0:00:44]} 19. exd5 {[%emt 0:00:06]} Rxe1+ {[%emt 0:00:46]} 20. Bxe1 {[%emt 0:00:13]} b6 {[%emt 0:00:48]} 21. axb6 {[%emt 0:01:04]} Qxb6 {[%emt 0:00:09]} 22. Ra3 {[%emt 0:09:04]} Ne8 {[%emt 0:03:59]} 23. Bd1 {[%emt 0:02:10]} Qb7 {[%emt 0:03:36]} 24. Qa2 {[%emt 0:02:57]} Nc7 {[%emt 0:01:25]} 25. Bd2 {[%emt 0:00:54]} Re8 {[%emt 0:00:32]} 26. Qc2 {[%emt 0:00:35]} Nf6 {[%emt 0:04:25]} 27. Qd3 {[%emt 0:00:28]} h6 {[%emt 0:04:05]} 28. Qg3 {[%emt 0:02:26]} Bf8 {[%emt 0:00:33]} 29. Bc2 {[%emt 0:00:14]} Kh7 {[%emt 0:01:58]} 30. Qf4 {[%emt 0:01:01]} Kg7 {[%emt 0:02:26]} 31. Qxh6+ {[%emt 0:01:24]} Kg8 {[%emt 0:00:01]} 32. Qf4 {[%emt 0:00:35]} Nh5 {[%emt 0:01:08]} 33. Qf3 {[%emt 0:01:05]} Be7 {[%emt 0:00:47]} 34. Ne4 {[%emt 0:01:08]} f5 {[%emt 0:00:01]} 35. Nc3 {[%emt 0:04:02]} Ng7 {[%emt 0:00:42]} 36. Ra1 {[%emt 0:00:24]} Bf6 {[%emt 0:00:03]} 37. Rd1 {[%emt 0:11:44]} Be5 {[%emt 0:01:08]} 38. Ne2 {[%emt 0:01:09]} Nh5 {[%emt 0:00:31]} 39. g4 {[%emt 0:01:37]} Ng7 {[%emt 0:00:43]} 40. Nf4 {[%emt 0:01:58]} Nce6 {[%emt 0:00:23]} 41. Nxg6 $16 {[%emt 0:02:56]} Nd4 {[%emt 0:00:20]} 42. Qd3 {[%emt 0:00:09]} Nxc2 {[%emt 0:00:34]} 43. Qxc2 {[%emt 0:02:31]} Bd4 {[%emt 0:00:19]} 44. Bc3 {[%emt 0:01:06]} Bxc3 {[%emt 0:00:47]} 45. Qxc3 {[%emt 0:00:21]} Qf7 {[%emt 0:00:33]} 46. Nh4 {[%emt 0:00:25]} fxg4 {[%emt 0:00:07]} 47. hxg4 {[%emt 0:00:16]} Re4 {[%emt 0:00:18]} 48. Qg3 {[%emt 0:08:11]} Qf6 {[%emt 0:00:01]} 49. Ng2 {[%emt 0:00:33]} a5 {[%emt 0:01:10]} 50. Re1 {[%emt 0:00:30]} Rd4 {[%emt 0:00:25]} 51. Ne3 {[%emt 0:05:55]} Rd3 {[%emt 0:00:24]} 52. Rb1 {[%emt 0:00:45]} Qg6 {[%emt 0:00:11]} 53. Ra1 {[%emt 0:01:06]} Rxb3 {[%emt 0:00:05]} 54. Rxa5 {[%emt 0:00:15]} Rb1+ {[%emt 0:01:47]} 55. Nf1 {[%emt 0:00:06]} Qe4 {[%emt 0:00:17]} 56. Ra8+ {[%emt 0:00:45]} Kf7 {[%emt 0:00:08]} 57. Ra7+ {[%emt 0:00:56]} Kg8 {[%emt 0:00:01]} 58. Qxd6 {[%emt 0:02:55]} Qxc4 {[%emt 0:01:38]} 59. Rxg7+ {[%emt 0:00:53]} Kxg7 {[%emt 0:00:05]} 60. Qe5+ {[%emt 0:00:19]} Kf7 {[%emt 0:00:55]} 61. Qf5+ {[%emt 0:00:08]} Ke7 {[%emt 0:00:01]} 62. Qxb1 {[%emt 0:00:06]} Qxg4+ {[%emt 0:00:17]} 63. Ng3 {[%emt 0:00:07]} Kd6 {[%emt 0:00:10]} 64. Qf5 {[%emt 0:01:06]} Qd1+ {[%emt 0:00:54]} 65. Kg2 {[%emt 0:00:12]} c4 {[%emt 0:01:09]} 66. Ne4+ {[%emt 0:01:00] Kxd5} 1-0

[Event "XVI Gran Hotel Bali 2017"]
[Site "Benidorm"]
[Date "2017.12.04"]
[Round "4"]
[White "Iglesias, Jorge"]
[Black "Alvarez Serrano, Carlos"]
[Result "1-0"]
[ECO "A37"]
[WhiteElo "2291"]
[BlackElo "2190"]
[Annotator "NA"]
[PlyCount "121"]
[EventDate "2017.??.??"]
[EventType "swiss"]
[EventCountry "ESP"]
[SourceTitle "playchess.com"]
[Source "ChessBase"]
[SourceQuality "1"]
[TimeControl "5400+30"]

1. c4 {[%emt 0:02:43]} c5 {[%emt 0:08:32]} 2. Nf3 {[%emt 0:00:26]} Nc6 {[%emt 0:01:27]} 3. Nc3 {[%emt 0:01:12]} g6 {[%emt 0:00:39]} 4. g3 {[%emt 0:02:29]} Bg7 {[%emt 0:00:52]} 5. Bg2 {[%emt 0:00:11]} d6 {[%emt 0:00:10]} 6. O-O {[%emt 0:01:34]} e6 {[%emt 0:00:37]} 7. a3 {[%emt 0:00:48]} Nge7 {[%emt 0:01:01]} 8. Rb1 {[%emt 0:00:59]} O-O {[%emt 0:01:47]} 9. b4 {[%emt 0:10:31]} Rb8 {[%emt 0:05:45]} 10. e3 {[%emt 0:13:45]} Nf5 {[%emt 0:06:23]} 11. Ne2 {[%emt 0:06:05] A37: Symmetrical English vs ...g6: 4 Bg2 Bg7 5 Nf3} Ne5 $146 {[%emt 0:13:47]} ({Predecessor:} 11... cxb4 12. axb4 b5 13. cxb5 Rxb5 14. Ba3 a6 15. d4 Na7 16. Qd3 Bd7 17. Rfc1 Rb6 18. d5 Bb5 19. Qd2 Bxe2 20. Qxe2 exd5 21. Bh3 Ne7 22. Nd4 Qb8 23. Qd3 Qb7 24. Bb2 Rb8 {½-½ (24) Kveinys,A (2555)-Urban,K (2490) Krynica 1997}) 12. Nxe5 {[%emt 0:05:06]} Bxe5 {[%emt 0:05:13]} 13. d4 {[%emt 0:04:07]} cxd4 {[%emt 0:00:30]} 14. Nxd4 {[%emt 0:02:57]} Nxd4 {[%emt 0:02:16]} 15. exd4 {[%emt 0:00:08]} Bg7 {[%emt 0:00:14]} 16. Be3 {[%emt 0:01:28]} b6 {[%emt 0:10:47]} 17. Qd2 {[%emt 0:05:17]} Qc7 {[%emt 0:04:01]} 18. Rbc1 {[%emt 0:01:00]} Bb7 {[%emt 0:00:38]} 19. d5 {[%emt 0:02:23]} Rfc8 {[%emt 0:03:38]} 20. Rfd1 {[%emt 0:02:12]} e5 {[%emt 0:05:38]} 21. c5 {[%emt 0:07:01]} bxc5 {[%emt 0:00:29]} 22. bxc5 {[%emt 0:00:07]} dxc5 {[%emt 0:00:29]} 23. Bxc5 {[%emt 0:00:10]} Qd7 {[%emt 0:02:34]} 24. Bxa7 {[%emt 0:01:37]} Ra8 {[%emt 0:00:26]} 25. Bc5 {[%emt 0:00:49]} f5 {[%emt 0:01:31]} 26. Bb4 {[%emt 0:02:22]} e4 {[%emt 0:00:33]} 27. d6 {[%emt 0:00:49]} Be5 {[%emt 0:00:40]} 28. Rxc8+ {[%emt 0:02:39]} Rxc8 {[%emt 0:02:42]} 29. Rc1 {[%emt 0:00:37]} Rxc1+ {[%emt 0:03:42]} 30. Qxc1 {[%emt 0:00:08]} Qc6 {[%emt 0:00:45]} 31. Qg5 {[%emt 0:05:55]} Qd7 {[%emt 0:05:24]} 32. Bf1 {[%emt 0:01:00]} ({Inferior is} 32. Qe7 Qxe7 33. dxe7 Kf7 $11) 32... Bd5 $18 {[%emt 0:01:23]} (32... Bc6 33. Bc4+ Kg7) 33. Qd2 {[%emt 0:00:22]} Be6 {[%emt 0:00:43]} 34. Bc5 {[%emt 0:02:26]} Qc6 {[%emt 0:00:36]} 35. Qb4 {[%emt 0:00:59]} g5 {[%emt 0:05:13]} 36. a4 {[%emt 0:04:33]} f4 {[%emt 0:01:06]} 37. a5 {[%emt 0:02:58]} e3 {[%emt 0:00:25]} 38. fxe3 {[%emt 0:00:11]} fxg3 {[%emt 0:00:30]} 39. hxg3 {[%emt 0:00:16]} Qf3 {[%emt 0:00:37]} 40. Qd2 {[%emt 0:00:53]} Qxg3+ {[%emt 0:04:21]} 41. Qg2 {[%emt 0:00:34]} Bxd6 {[%emt 0:00:53]} 42. Bxd6 {[%emt 0:00:44]} Qxd6 {[%emt 0:00:13]} 43. Qxg5+ {[%emt 0:00:06]} Kf7 {[%emt 0:00:21]} 44. Qf4+ {[%emt 0:00:26]} Ke7 {[%emt 0:01:31]} 45. a6 {[%emt 0:00:41]} Qa3 {[%emt 0:00:24]} 46. Qd4 {[%emt 0:00:21]} Qa5 {[%emt 0:00:47]} 47. Qa7+ {[%emt 0:01:52]} Bd7 {[%emt 0:00:32]} 48. Qb8 {[%emt 0:01:54]} Qg5+ {[%emt 0:00:29]} 49. Kf2 {[%emt 0:00:08]} Qh4+ {[%emt 0:00:32]} 50. Qg3 {[%emt 0:00:11]} Qa4 {[%emt 0:01:03]} 51. Qe5+ {[%emt 0:00:09]} Be6 {[%emt 0:00:39]} 52. Qc5+ {[%emt 0:00:15]} Kf7 {[%emt 0:00:28]} 53. Qd4 {[%emt 0:01:15]} Qa2+ {[%emt 0:00:23]} 54. Kg3 {[%emt 0:00:21]} Bd5 {[%emt 0:00:23]} 55. e4 {[%emt 0:00:38]} Qa3+ {[%emt 0:00:17]} 56. Qd3 {[%emt 0:01:05]} Qd6+ {[%emt 0:00:05]} 57. Kf2 {[%emt 0:00:12]} Qh2+ {[%emt 0:00:31]} 58. Bg2 {[%emt 0:00:18]} Ba8 {[%emt 0:01:20]} 59. Qd7+ {[%emt 0:00:07]} Kg6 {[%emt 0:00:26]} 60. Qe8+ {[%emt 0:00:06]} Kg5 {[%emt 0:00:05]} 61. Qxa8 {[%emt 0:00:25]} 1-0

[Event "XVI Gran Hotel Bali 2017"]
[Site "Benidorm"]
[Date "2017.12.04"]
[Round "4"]
[White "Ayats Llobera, Gerard"]
[Black "Cubas Pons, Juan Miguel"]
[Result "1/2-1/2"]
[ECO "D35"]
[WhiteElo "2285"]
[BlackElo "2187"]
[Annotator "NA"]
[PlyCount "60"]
[EventDate "2017.??.??"]
[EventType "swiss"]
[EventCountry "ESP"]
[SourceTitle "playchess.com"]
[Source "ChessBase"]
[SourceQuality "1"]
[TimeControl "5400+30"]

1. d4 {[%emt 0:00:00]} e6 {[%emt 0:00:33]} 2. c4 {[%emt 0:00:00]} Nf6 {[%emt 0:00:53]} 3. Nc3 {[%emt 0:00:00]} d5 {[%emt 0:01:31]} 4. cxd5 {[%emt 0:01:01]} exd5 {[%emt 0:00:08]} 5. Bg5 {[%emt 0:00:09]} Be7 {[%emt 0:01:15]} 6. e3 {[%emt 0:00:21]} c6 {[%emt 0:01:38]} 7. Qc2 {[%emt 0:00:10]} Nbd7 {[%emt 0:00:45]} 8. Bd3 {[%emt 0:00:57]} O-O {[%emt 0:02:31]} 9. Nf3 {[%emt 0:02:55]} Re8 {[%emt 0:00:09]} 10. O-O {[%emt 0:02:08]} Nf8 {[%emt 0:04:14]} 11. a3 {[%emt 0:12:35]} Ne4 {[%emt 0:34:27]} 12. Bxe7 {[%emt 0:14:15] D36: Queen's Gambit Declined: Exchange Variation: Main line (5 Bg5 c6 6 Qc2)} (12. Bf4 f5 13. Ne5 Ng6 14. Nxg6 hxg6 15. f3 Ng5 16. Kh1 Bd6 17. Bxd6 Qxd6 18. e4 dxe4 19. fxe4 Qxd4 20. exf5 gxf5 21. Bxf5 {½-½ (31) Gulko,B (2585)-Filippov,V (2595) Elista 1998}) 12... Qxe7 {[%emt 0:01:12]} 13. Nd2 {[%emt 0:32:52]} Nxd2 {[%emt 0:08:10]} 14. Qxd2 {[%emt 0:00:01]} Qf6 $146 {[%emt 0:00:17]} ({Predecessor:} 14... Bg4 15. b4 a6 16. Qb2 Ng6 17. Bxg6 hxg6 18. a4 Qg5 19. b5 Bf3 {0-1 (34) Dvoryadkin,M (1906)-Mamonov,A (1763) Saratov 2011}) 15. b4 {[%emt 0:00:48]} a6 {[%emt 0:00:09]} 16. Qc2 {[%emt 0:04:12]} g6 {[%emt 0:02:30]} 17. a4 {[%emt 0:00:38]} Ne6 {[%emt 0:01:16]} 18. b5 {[%emt 0:01:09]} axb5 {[%emt 0:00:39]} 19. axb5 {[%emt 0:00:01]} Rxa1 {[%emt 0:00:09]} 20. Rxa1 {[%emt 0:00:01]} c5 {[%emt 0:07:11]} 21. Nxd5 {[%emt 0:17:47]} Qd8 {[%emt 0:00:10]} 22. Qc4 {[%emt 0:01:01]} cxd4 {[%emt 0:00:30]} 23. exd4 {[%emt 0:00:28]} Ng5 {[%emt 0:03:56]} 24. Ne3 {[%emt 0:01:23]} Be6 {[%emt 0:01:57]} 25. d5 {[%emt 0:01:53]} Qf6 {[%emt 0:00:07]} 26. Rd1 {[%emt 0:01:02]} Bh3 {[%emt 0:05:10] [#]} 27. Be2 $11 {[%emt 0:03:09]} ({Better is} 27. Bf1 $1 $16 Ne4 28. f3) 27... Ne4 {[%emt 0:06:28]} 28. Bf3 {[%emt 0:00:53]} Nd6 {[%emt 0:01:10]} 29. Qd4 {[%emt 0:00:54]} Qxd4 {[%emt 0:00:12]} 30. Rxd4 {[%emt 0:00:01]} Nxb5 {[%emt 0:00:27]} 1/2-1/2

[Event "XVI Gran Hotel Bali 2017"]
[Site "Benidorm"]
[Date "2017.12.04"]
[Round "4"]
[White "Exposito Amaro, Josue"]
[Black "Yuksel, Atilla Koksal"]
[Result "1/2-1/2"]
[ECO "A00"]
[WhiteElo "2263"]
[BlackElo "2184"]
[Annotator "ChessBase"]
[PlyCount "70"]
[EventDate "2017.??.??"]
[EventType "swiss"]
[EventCountry "ESP"]
[SourceTitle "playchess.com"]
[Source "ChessBase"]
[SourceQuality "1"]
[TimeControl "5400+30"]

1. Nc3 {[%emt 0:05:38]} c5 {[%emt 0:00:26]} 2. e4 {[%emt 0:00:36]} e6 {[%emt 0:00:41]} 3. f4 {[%emt 0:00:43]} Ne7 {[%emt 0:00:34]} 4. Nf3 {[%emt 0:01:05]} Nbc6 {[%emt 0:00:33]} 5. d4 {[%emt 0:00:18]} cxd4 {[%emt 0:08:45]} 6. Nxd4 {[%emt 0:00:29]} d5 {[%emt 0:02:08]} 7. Be3 {[%emt 0:09:22]} Nxd4 {[%emt 0:17:45]} 8. Qxd4 {[%emt 0:03:51]} Nc6 {[%emt 0:03:27]} 9. Bb5 {[%emt 0:06:39]} Bd7 {[%emt 0:02:08]} 10. Qd2 {[%emt 0:02:14]} d4 {[%emt 0:16:33]} 11. Bxc6 {[%emt 0:07:55]} Bxc6 {[%emt 0:00:35]} 12. Qxd4 {[%emt 0:01:17]} Qxd4 {[%emt 0:00:20]} 13. Bxd4 {[%emt 0:00:09]} Bb4 {[%emt 0:00:27]} 14. O-O-O {[%emt 0:06:53]} Bxc3 {[%emt 0:00:14]} 15. Bxc3 {[%emt 0:00:20]} Bxe4 {[%emt 0:00:09]} 16. Rhe1 {[%emt 0:12:13]} Bc6 {[%emt 0:07:43]} 17. f5 {[%emt 0:01:37]} O-O {[%emt 0:00:51]} 18. fxe6 {[%emt 0:02:48]} fxe6 {[%emt 0:00:06]} 19. Rxe6 {[%emt 0:00:53]} Rae8 {[%emt 0:06:35]} 20. Rxe8 {[%emt 0:03:47]} Rxe8 {[%emt 0:00:01]} 21. g3 {[%emt 0:03:22]} a6 {[%emt 0:01:57]} 22. b3 {[%emt 0:04:49]} Re2 {[%emt 0:01:05]} 23. Rd2 {[%emt 0:00:08]} Rxd2 {[%emt 0:00:29]} 24. Kxd2 {[%emt 0:00:07]} g6 {[%emt 0:00:08]} 25. Ke3 {[%emt 0:00:31]} Kf7 {[%emt 0:00:12]} 26. Kd4 {[%emt 0:00:08]} Ke6 {[%emt 0:00:52]} 27. Kc5 {[%emt 0:00:47]} Kd7 {[%emt 0:00:20]} 28. Be5 {[%emt 0:00:34]} h5 {[%emt 0:00:39]} 29. c4 {[%emt 0:03:32]} Bf3 {[%emt 0:00:53]} 30. b4 {[%emt 0:01:14]} Bg2 {[%emt 0:00:15]} 31. Kb6 {[%emt 0:01:50]} Kc8 {[%emt 0:00:17]} 32. a4 {[%emt 0:00:22]} Be4 {[%emt 0:00:35]} 33. b5 {[%emt 0:02:09]} axb5 {[%emt 0:00:05]} 34. cxb5 {[%emt 0:00:53]} Bf3 {[%emt 0:00:09]} 35. a5 {[%emt 0:00:19]} Be4 {[%emt 0:00:11]} 1/2-1/2